[Event "Titled Tuesday Blitz April 05 Late 2022"]
[White "Gomez Dieguez, David"]
[Black "Stoenescu, Radu"]
[WhiteFideId "22223630"]
[BlackFideId "610143"]
[WhiteElo "2115"]
[BlackElo "1925"]
[Result "1-0"]
[Round "10"]
[TimeControl "180+1"]
[Date "2022.04.06"]
[WhiteClock "0:00:03"]
[BlackClock "0:00:06"]

1. c4 {[%clk 0:03:00]}  f5 {[%clk 0:01:15]} 2. Nf3 {[%clk 0:02:57]}  Nf6 {[%clk 0:01:16]} 3. g3 {[%clk 0:02:58]}  g6 {[%clk 0:01:15]} 4. Bg2 {[%clk 0:02:58]}  Bg7 {[%clk 0:01:16]} 5. O-O {[%clk 0:02:58]}  d6 {[%clk 0:01:16]} 6. d4 {[%clk 0:02:56]}  O-O {[%clk 0:01:14]} 7. Nc3 {[%clk 0:02:54]}  c6 {[%clk 0:01:15]} 8. d5 {[%clk 0:02:53]}  Bd7 {[%clk 0:01:14]} 9. Qc2 {[%clk 0:02:36]}  Na6 {[%clk 0:01:11]} 10. Re1 {[%clk 0:02:22]}  Rc8 {[%clk 0:01:03]} 11. e4 {[%clk 0:02:14]}  fxe4 {[%clk 0:01:00]} 12. Nxe4 {[%clk 0:02:02]}  cxd5 {[%clk 0:00:57]} 13. Neg5 {[%clk 0:01:40]}  Rxc4 {[%clk 0:00:50]} 14. Qb3 {[%clk 0:01:28]}  Nc5 {[%clk 0:00:49]} 15. Qe3 {[%clk 0:01:27]}  e5 {[%clk 0:00:39]} 16. b3 {[%clk 0:01:22]}  Rb4 {[%clk 0:00:24]} 17. Ba3 {[%clk 0:01:14]}  d4 {[%clk 0:00:24]} 18. Qc1 {[%clk 0:01:06]}  Rb6 {[%clk 0:00:24]} 19. Bxc5 {[%clk 0:01:03]}  Rc6 {[%clk 0:00:23]} 20. b4 {[%clk 0:00:58]}  b6 {[%clk 0:00:21]} 21. Nxe5 {[%clk 0:00:55]}  dxe5 {[%clk 0:00:20]} 22. Bxc6 {[%clk 0:00:53]}  Bxc6 {[%clk 0:00:20]} 23. Ne6 {[%clk 0:00:52]}  Qd5 {[%clk 0:00:19]} 24. Kf1 {[%clk 0:00:25]}  Bb5+ {[%clk 0:00:18]} 25. Kg1 {[%clk 0:00:16]}  Bc6 {[%clk 0:00:17]} 26. Kf1 {[%clk 0:00:15]}  Qg2+ {[%clk 0:00:14]} 27. Ke2 {[%clk 0:00:15]}  Bb5+ {[%clk 0:00:15]} 28. Kd2 {[%clk 0:00:16]}  Qxf2+ {[%clk 0:00:14]} 29. Kd1 {[%clk 0:00:13]}  Ng4 {[%clk 0:00:14]} 30. Qd2 {[%clk 0:00:08]}  Ne3+ {[%clk 0:00:14]} 31. Kc1 {[%clk 0:00:08]}  Qf5 {[%clk 0:00:10]} 32. Bxf8 {[%clk 0:00:03]}  Qxe6 {[%clk 0:00:09]} 33. Bxg7 {[%clk 0:00:03]}  Qc4+ {[%clk 0:00:09]} 34. Kb2 {[%clk 0:00:03]}  Kxg7 {[%clk 0:00:07]} 35. Rac1 {[%clk 0:00:03]}  Qd5 {[%clk 0:00:06]} 36. Rxe3 {[%clk 0:00:03]} 1-0


[Site "https://www.chess.com"]

[Event "Titled Tuesday Blitz April 05 Late 2022"]
[White "Hoffmann, Asa"]
[Black "Ricaurte Lopez, Juan Carlos"]
[WhiteFideId "2001470"]
[BlackFideId "3600327"]
[WhiteElo "2373"]
[BlackElo "2182"]
[Result "1-0"]
[Round "10"]
[TimeControl "180+1"]
[Date "2022.04.06"]
[WhiteClock "0:02:01"]
[BlackClock "0:00:13"]

1. d4 {[%clk 0:03:00]}  Nf6 {[%clk 0:02:58]} 2. Bg5 {[%clk 0:02:59]}  c5 {[%clk 0:02:56]} 3. d5 {[%clk 0:02:58]}  Qb6 {[%clk 0:02:53]} 4. Nc3 {[%clk 0:02:57]}  Qxb2 {[%clk 0:02:37]} 5. Bd2 {[%clk 0:02:48]}  Qb6 {[%clk 0:02:20]} 6. e4 {[%clk 0:02:47]}  d6 {[%clk 0:02:18]} 7. f4 {[%clk 0:02:47]}  c4 {[%clk 0:02:15]} 8. e5 {[%clk 0:02:43]}  dxe5 {[%clk 0:02:03]} 9. fxe5 {[%clk 0:02:43]}  Ng4 {[%clk 0:02:02]} 10. Qe2 {[%clk 0:02:42]}  Nd7 {[%clk 0:01:53]} 11. Nf3 {[%clk 0:02:41]}  e6 {[%clk 0:01:41]} 12. Rb1 {[%clk 0:02:34]}  Qc7 {[%clk 0:01:24]} 13. d6 {[%clk 0:02:33]}  Qc6 {[%clk 0:01:23]} 14. h3 {[%clk 0:02:26]}  Nh6 {[%clk 0:01:00]} 15. Qxc4 {[%clk 0:02:25]}  Qxc4 {[%clk 0:00:51]} 16. Bxc4 {[%clk 0:02:24]}  a6 {[%clk 0:00:44]} 17. g4 {[%clk 0:02:22]}  b5 {[%clk 0:00:42]} 18. Bd3 {[%clk 0:02:21]}  Bb7 {[%clk 0:00:41]} 19. Be4 {[%clk 0:02:18]}  Rb8 {[%clk 0:00:37]} 20. a4 {[%clk 0:02:16]}  f5 {[%clk 0:00:21]} 21. Bxb7 {[%clk 0:02:07]}  Rxb7 {[%clk 0:00:20]} 22. gxf5 {[%clk 0:02:04]}  Nxf5 {[%clk 0:00:18]} 23. axb5 {[%clk 0:02:03]}  axb5 {[%clk 0:00:17]} 24. Rxb5 {[%clk 0:02:03]}  Rxb5 {[%clk 0:00:16]} 25. Nxb5 {[%clk 0:02:03]}  Kf7 {[%clk 0:00:14]} 26. Ng5+ {[%clk 0:02:01]}  Kg6 {[%clk 0:00:13]} 27. Nxe6 {[%clk 0:02:01]} 1-0


[Site "https://www.chess.com"]

[Event "Titled Tuesday Blitz April 05 Late 2022"]
[White "Kazakouski, Valery"]
[Black "Kosteniuk, Alexandra"]
[WhiteFideId "13507443"]
[BlackFideId "4128125"]
[WhiteElo "2524"]
[BlackElo "2469"]
[Result "1-0"]
[Round "10"]
[TimeControl "180+1"]
[Date "2022.04.05"]
[WhiteClock "0:00:55"]
[BlackClock "0:00:27"]

1. d4 {[%clk 0:02:47]}  Nf6 {[%clk 0:02:59]} 2. c4 {[%clk 0:02:47]}  e6 {[%clk 0:02:59]} 3. g3 {[%clk 0:02:47]}  d5 {[%clk 0:02:59]} 4. Bg2 {[%clk 0:02:48]}  dxc4 {[%clk 0:03:00]} 5. Nf3 {[%clk 0:02:48]}  Nc6 {[%clk 0:03:00]} 6. O-O {[%clk 0:02:48]}  Rb8 {[%clk 0:03:00]} 7. Nc3 {[%clk 0:02:48]}  Be7 {[%clk 0:02:54]} 8. Qa4 {[%clk 0:02:43]}  O-O {[%clk 0:02:50]} 9. Qxc4 {[%clk 0:02:42]}  Nb4 {[%clk 0:02:32]} 10. a3 {[%clk 0:02:29]}  Nbd5 {[%clk 0:02:32]} 11. Rd1 {[%clk 0:02:26]}  Bd7 {[%clk 0:02:10]} 12. Ne5 {[%clk 0:02:24]}  Be8 {[%clk 0:02:09]} 13. e4 {[%clk 0:02:23]}  Nxc3 {[%clk 0:02:03]} 14. Qxc3 {[%clk 0:02:20]}  Nd7 {[%clk 0:01:51]} 15. Nd3 {[%clk 0:02:15]}  c5 {[%clk 0:01:46]} 16. dxc5 {[%clk 0:01:59]}  Rc8 {[%clk 0:01:26]} 17. Be3 {[%clk 0:01:52]}  Qc7 {[%clk 0:01:22]} 18. Rac1 {[%clk 0:01:50]}  Bf6 {[%clk 0:01:23]} 19. Bd4 {[%clk 0:01:46]}  Bxd4 {[%clk 0:01:16]} 20. Qxd4 {[%clk 0:01:47]}  Nf6 {[%clk 0:01:12]} 21. e5 {[%clk 0:01:42]}  Nd5 {[%clk 0:01:12]} 22. Bxd5 {[%clk 0:01:36]}  exd5 {[%clk 0:01:13]} 23. Nf4 {[%clk 0:01:37]}  Bc6 {[%clk 0:01:04]} 24. Nxd5 {[%clk 0:01:35]}  Bxd5 {[%clk 0:01:02]} 25. Qxd5 {[%clk 0:01:35]}  Rfd8 {[%clk 0:01:02]} 26. Qf3 {[%clk 0:01:22]}  Rxd1+ {[%clk 0:00:48]} 27. Rxd1 {[%clk 0:01:21]}  Qxe5 {[%clk 0:00:46]} 28. Rd7 {[%clk 0:01:18]}  Qe1+ {[%clk 0:00:35]} 29. Kg2 {[%clk 0:01:17]}  Qe8 {[%clk 0:00:35]} 30. Rxb7 {[%clk 0:01:06]}  Rxc5 {[%clk 0:00:34]} 31. Rxa7 {[%clk 0:01:07]}  Rc8 {[%clk 0:00:30]} 32. b4 {[%clk 0:01:01]}  g6 {[%clk 0:00:28]} 33. a4 {[%clk 0:00:59]}  h5 {[%clk 0:00:28]} 34. h4 {[%clk 0:00:58]}  Qe6 {[%clk 0:00:27]} 35. Ra8 {[%clk 0:00:55]} 1-0


[Site "https://www.chess.com"]

[Event "Titled Tuesday Blitz April 05 Late 2022"]
[White "Kollars, Dmitrij"]
[Black "Herrera Reyes, Jose Antonio"]
[WhiteFideId "12909572"]
[BlackFideId "2274914"]
[WhiteElo "2584"]
[BlackElo "2361"]
[Result "1-0"]
[Round "10"]
[TimeControl "180+1"]
[Date "2022.04.05"]
[WhiteClock "0:01:46"]
[BlackClock "0:00:32"]

1. Nf3 {[%clk 0:03:00]}  Nf6 {[%clk 0:02:59]} 2. c4 {[%clk 0:03:00]}  c5 {[%clk 0:02:58]} 3. b3 {[%clk 0:02:59]}  b6 {[%clk 0:02:57]} 4. Bb2 {[%clk 0:02:59]}  Bb7 {[%clk 0:02:58]} 5. g3 {[%clk 0:02:57]}  Qc7 {[%clk 0:02:57]} 6. Bg2 {[%clk 0:02:57]}  e6 {[%clk 0:02:57]} 7. O-O {[%clk 0:02:56]}  Be7 {[%clk 0:02:57]} 8. Nc3 {[%clk 0:02:57]}  a6 {[%clk 0:02:57]} 9. d4 {[%clk 0:02:57]}  cxd4 {[%clk 0:02:58]} 10. Qxd4 {[%clk 0:02:57]}  O-O {[%clk 0:02:55]} 11. Rac1 {[%clk 0:02:57]}  d6 {[%clk 0:02:48]} 12. Rfd1 {[%clk 0:02:53]}  Nbd7 {[%clk 0:02:47]} 13. Nd2 {[%clk 0:02:53]}  Bxg2 {[%clk 0:02:46]} 14. Kxg2 {[%clk 0:02:54]}  Qb7+ {[%clk 0:02:44]} 15. Nde4 {[%clk 0:02:38]}  Rfd8 {[%clk 0:02:41]} 16. f3 {[%clk 0:02:34]}  Ne5 {[%clk 0:02:35]} 17. Nxf6+ {[%clk 0:02:31]}  Bxf6 {[%clk 0:02:29]} 18. Ne4 {[%clk 0:02:31]}  Be7 {[%clk 0:02:29]} 19. Ba3 {[%clk 0:02:17]}  Nc6 {[%clk 0:01:50]} 20. Qc3 {[%clk 0:02:17]}  d5 {[%clk 0:01:43]} 21. cxd5 {[%clk 0:02:17]}  exd5 {[%clk 0:01:32]} 22. Bb2 {[%clk 0:02:13]}  Bf8 {[%clk 0:01:26]} 23. Nf6+ {[%clk 0:02:13]}  gxf6 {[%clk 0:01:12]} 24. Qxf6 {[%clk 0:02:14]}  d4 {[%clk 0:01:13]} 25. Qxc6 {[%clk 0:02:14]}  Qe7 {[%clk 0:01:06]} 26. Qc4 {[%clk 0:02:11]}  Bg7 {[%clk 0:01:05]} 27. Qd3 {[%clk 0:02:07]}  Re8 {[%clk 0:01:01]} 28. Rd2 {[%clk 0:02:02]}  Rad8 {[%clk 0:01:00]} 29. Rc6 {[%clk 0:02:00]}  Qg5 {[%clk 0:00:57]} 30. Rdc2 {[%clk 0:01:49]}  Re3 {[%clk 0:00:54]} 31. Bc1 {[%clk 0:01:49]}  Qb5 {[%clk 0:00:33]} 32. Qxb5 {[%clk 0:01:45]}  axb5 {[%clk 0:00:31]} 33. Bxe3 {[%clk 0:01:45]}  dxe3 {[%clk 0:00:32]} 34. Rc8 {[%clk 0:01:46]} 1-0


[Site "https://www.chess.com"]

[Event "Titled Tuesday Blitz April 05 Late 2022"]
[White "Kozin, Yuri"]
[Black "Romero Ruscalleda, Josep"]
[WhiteFideId "4129920"]
[BlackFideId "2231859"]
[WhiteElo "2500"]
[BlackElo "2294"]
[Result "1-0"]
[Round "10"]
[TimeControl "180+1"]
[Date "2022.04.06"]
[WhiteClock "0:02:30"]
[BlackClock "0:01:39"]

1. e4 {[%clk 0:03:00]}  g6 {[%clk 0:03:00]} 2. d4 {[%clk 0:03:00]}  Bg7 {[%clk 0:03:01]} 3. Nc3 {[%clk 0:03:01]}  d6 {[%clk 0:03:01]} 4. Nf3 {[%clk 0:03:01]}  a6 {[%clk 0:03:01]} 5. Be3 {[%clk 0:02:59]}  b5 {[%clk 0:03:01]} 6. a4 {[%clk 0:02:59]}  b4 {[%clk 0:03:00]} 7. Na2 {[%clk 0:02:59]}  a5 {[%clk 0:02:59]} 8. c3 {[%clk 0:02:58]}  Bb7 {[%clk 0:02:48]} 9. Bc4 {[%clk 0:02:57]}  bxc3 {[%clk 0:02:42]} 10. Bxf7+ {[%clk 0:02:52]}  Kxf7 {[%clk 0:02:41]} 11. Qb3+ {[%clk 0:02:52]}  Ke8 {[%clk 0:02:29]} 12. Qxb7 {[%clk 0:02:51]}  Nd7 {[%clk 0:02:29]} 13. Nxc3 {[%clk 0:02:46]}  Qb8 {[%clk 0:02:28]} 14. Qc6 {[%clk 0:02:42]}  Nf6 {[%clk 0:02:03]} 15. Nb5 {[%clk 0:02:38]}  Kf8 {[%clk 0:01:48]} 16. e5 {[%clk 0:02:33]}  Ng4 {[%clk 0:01:39]} 17. Qxd7 {[%clk 0:02:30]} 1-0


[Site "https://www.chess.com"]

[Event "Titled Tuesday Blitz April 05 Late 2022"]
[White "Koziorowicz, Michal"]
[Black "Galego, Luis"]
[WhiteFideId "21809194"]
[BlackFideId "1900072"]
[WhiteElo "2235"]
[BlackElo "2516"]
[Result "0-1"]
[Round "10"]
[TimeControl "180+1"]
[Date "2022.04.05"]
[WhiteClock "0:01:08"]
[BlackClock "0:00:12"]

1. e4 {[%clk 0:03:00]}  c6 {[%clk 0:02:34]} 2. d4 {[%clk 0:02:59]}  d5 {[%clk 0:02:35]} 3. e5 {[%clk 0:03:00]}  Bf5 {[%clk 0:02:32]} 4. Nc3 {[%clk 0:03:00]}  e6 {[%clk 0:02:32]} 5. g4 {[%clk 0:02:58]}  Bg6 {[%clk 0:02:32]} 6. Nge2 {[%clk 0:02:59]}  Qh4 {[%clk 0:02:12]} 7. Nf4 {[%clk 0:02:56]}  Nd7 {[%clk 0:02:09]} 8. Ng2 {[%clk 0:02:52]}  Qd8 {[%clk 0:02:03]} 9. h4 {[%clk 0:02:52]}  h6 {[%clk 0:01:58]} 10. Nf4 {[%clk 0:02:47]}  Bh7 {[%clk 0:01:58]} 11. Be3 {[%clk 0:02:43]}  Qb6 {[%clk 0:01:56]} 12. Qd2 {[%clk 0:02:38]}  O-O-O {[%clk 0:01:51]} 13. Bd3 {[%clk 0:02:37]}  Bxd3 {[%clk 0:01:44]} 14. Qxd3 {[%clk 0:02:38]}  Bb4 {[%clk 0:01:28]} 15. O-O {[%clk 0:02:37]}  g5 {[%clk 0:01:16]} 16. Nfe2 {[%clk 0:02:24]}  h5 {[%clk 0:01:12]} 17. Bxg5 {[%clk 0:02:22]}  hxg4 {[%clk 0:01:08]} 18. Bxd8 {[%clk 0:02:21]}  Qxd8 {[%clk 0:01:09]} 19. Kg2 {[%clk 0:02:19]}  Ne7 {[%clk 0:01:05]} 20. Rh1 {[%clk 0:02:13]}  Ng6 {[%clk 0:01:05]} 21. h5 {[%clk 0:02:04]}  Nh4+ {[%clk 0:01:00]} 22. Kf1 {[%clk 0:02:04]}  Rxh5 {[%clk 0:00:56]} 23. Ng3 {[%clk 0:02:00]}  Rh8 {[%clk 0:00:56]} 24. Ke2 {[%clk 0:01:54]}  c5 {[%clk 0:00:52]} 25. Nb5 {[%clk 0:01:52]}  cxd4 {[%clk 0:00:39]} 26. Qxd4 {[%clk 0:01:52]}  Bc5 {[%clk 0:00:37]} 27. Qc3 {[%clk 0:01:48]}  Kb8 {[%clk 0:00:35]} 28. b4 {[%clk 0:01:44]}  Bb6 {[%clk 0:00:33]} 29. a4 {[%clk 0:01:41]}  a6 {[%clk 0:00:30]} 30. a5 {[%clk 0:01:39]}  Ba7 {[%clk 0:00:23]} 31. Nxa7 {[%clk 0:01:38]}  Kxa7 {[%clk 0:00:24]} 32. Qd4+ {[%clk 0:01:35]}  Kb8 {[%clk 0:00:24]} 33. Qxg4 {[%clk 0:01:32]}  Nxe5 {[%clk 0:00:20]} 34. Qf4 {[%clk 0:01:31]}  Ng6 {[%clk 0:00:19]} 35. Rxh8 {[%clk 0:01:30]}  Nxf4+ {[%clk 0:00:18]} 36. Ke3 {[%clk 0:01:26]}  Qxh8 {[%clk 0:00:18]} 37. Rh1 {[%clk 0:01:26]}  Qf6 {[%clk 0:00:15]} 38. Rh2 {[%clk 0:01:08]}  Ng4+ {[%clk 0:00:12]} 0-1


[Site "https://www.chess.com"]

[Event "Titled Tuesday Blitz April 05 Late 2022"]
[White "Kujawski, Adam"]
[Black "Morris-Suzuki, Sophie"]
[WhiteFideId "1100920"]
[BlackFideId "30922615"]
[WhiteElo "2353"]
[BlackElo "2497"]
[Result "0-1"]
[Round "10"]
[TimeControl "180+1"]
[Date "2022.04.06"]
[WhiteClock "0:00:02"]
[BlackClock "0:01:53"]

1. e4 {[%clk 0:03:00]}  c5 {[%clk 0:03:00]} 2. Nf3 {[%clk 0:03:00]}  e6 {[%clk 0:03:00]} 3. d4 {[%clk 0:03:00]}  cxd4 {[%clk 0:03:01]} 4. Nxd4 {[%clk 0:03:00]}  Nc6 {[%clk 0:03:02]} 5. Nc3 {[%clk 0:02:59]}  a6 {[%clk 0:03:03]} 6. a3 {[%clk 0:02:27]}  Qc7 {[%clk 0:03:02]} 7. Be3 {[%clk 0:02:26]}  Nf6 {[%clk 0:03:03]} 8. f4 {[%clk 0:02:26]}  d6 {[%clk 0:02:58]} 9. Be2 {[%clk 0:02:22]}  Bd7 {[%clk 0:02:56]} 10. Qd2 {[%clk 0:02:18]}  Be7 {[%clk 0:02:54]} 11. g4 {[%clk 0:02:16]}  Nxd4 {[%clk 0:02:53]} 12. Bxd4 {[%clk 0:02:11]}  Bc6 {[%clk 0:02:51]} 13. Bxf6 {[%clk 0:01:39]}  Bxf6 {[%clk 0:02:50]} 14. g5 {[%clk 0:01:35]}  Be7 {[%clk 0:02:44]} 15. O-O-O {[%clk 0:01:23]}  b5 {[%clk 0:02:43]} 16. h4 {[%clk 0:01:12]}  Qb7 {[%clk 0:02:37]} 17. Rhe1 {[%clk 0:00:29]}  a5 {[%clk 0:02:37]} 18. Nd5 {[%clk 0:00:07]}  exd5 {[%clk 0:02:28]} 19. exd5 {[%clk 0:00:08]}  Bd7 {[%clk 0:02:29]} 20. Bd3 {[%clk 0:00:08]}  Bg4 {[%clk 0:02:27]} 21. f5 {[%clk 0:00:06]}  f6 {[%clk 0:01:58]} 22. gxf6 {[%clk 0:00:03]}  gxf6 {[%clk 0:01:58]} 23. Rxe7+ {[%clk 0:00:02]}  Kxe7 {[%clk 0:01:53]} 0-1


[Site "https://www.chess.com"]

[Event "Titled Tuesday Blitz April 05 Late 2022"]
[White "Li, Ben"]
[Black "Czopor, Maciej"]
[WhiteFideId "2089980"]
[BlackFideId "21805431"]
[WhiteElo "2267"]
[BlackElo "1999"]
[Result "1-0"]
[Round "10"]
[TimeControl "180+1"]
[Date "2022.04.05"]
[WhiteClock "0:01:03"]
[BlackClock "0:00:01"]

1. d4 {[%clk 0:03:00]}  Nf6 {[%clk 0:02:58]} 2. c4 {[%clk 0:03:00]}  g6 {[%clk 0:02:59]} 3. Nc3 {[%clk 0:03:00]}  Bg7 {[%clk 0:03:00]} 4. e4 {[%clk 0:03:00]}  d6 {[%clk 0:03:00]} 5. Nf3 {[%clk 0:03:01]}  O-O {[%clk 0:03:01]} 6. h3 {[%clk 0:03:01]}  Nbd7 {[%clk 0:03:01]} 7. Bg5 {[%clk 0:03:00]}  e5 {[%clk 0:02:56]} 8. d5 {[%clk 0:03:00]}  Qe8 {[%clk 0:02:56]} 9. Be2 {[%clk 0:02:59]}  h6 {[%clk 0:02:56]} 10. Be3 {[%clk 0:02:59]}  Nh5 {[%clk 0:02:48]} 11. Nh2 {[%clk 0:02:20]}  Nf4 {[%clk 0:02:47]} 12. Bf1 {[%clk 0:02:21]}  Nc5 {[%clk 0:02:42]} 13. g3 {[%clk 0:02:19]}  Nxh3 {[%clk 0:02:22]} 14. Nf3 {[%clk 0:02:15]}  Ng5 {[%clk 0:02:03]} 15. Nxg5 {[%clk 0:02:14]}  hxg5 {[%clk 0:02:03]} 16. Bxg5 {[%clk 0:02:15]}  f6 {[%clk 0:01:56]} 17. Be3 {[%clk 0:02:14]}  f5 {[%clk 0:01:53]} 18. Be2 {[%clk 0:02:08]}  Nxe4 {[%clk 0:01:47]} 19. Nxe4 {[%clk 0:02:08]}  fxe4 {[%clk 0:01:48]} 20. Qd2 {[%clk 0:02:08]}  b5 {[%clk 0:01:40]} 21. c5 {[%clk 0:02:07]}  dxc5 {[%clk 0:01:25]} 22. Bxc5 {[%clk 0:02:07]}  Rf7 {[%clk 0:01:26]} 23. O-O-O {[%clk 0:02:04]}  Bf5 {[%clk 0:01:13]} 24. Be3 {[%clk 0:02:01]}  Qd7 {[%clk 0:01:08]} 25. Kb1 {[%clk 0:01:55]}  Bg4 {[%clk 0:01:05]} 26. Bxg4 {[%clk 0:01:50]}  Qxg4 {[%clk 0:01:06]} 27. Qb4 {[%clk 0:01:50]}  a6 {[%clk 0:01:01]} 28. Rc1 {[%clk 0:01:49]}  Rd8 {[%clk 0:01:00]} 29. Rhd1 {[%clk 0:01:49]}  Bf8 {[%clk 0:00:47]} 30. Qb3 {[%clk 0:01:39]}  Bd6 {[%clk 0:00:34]} 31. Rd2 {[%clk 0:01:33]}  Rdf8 {[%clk 0:00:32]} 32. Rc6 {[%clk 0:01:33]}  Qh3 {[%clk 0:00:27]} 33. Rxa6 {[%clk 0:01:26]}  Qf1+ {[%clk 0:00:27]} 34. Qd1 {[%clk 0:01:22]}  Qxd1+ {[%clk 0:00:22]} 35. Rxd1 {[%clk 0:01:23]}  Rxf2 {[%clk 0:00:09]} 36. Bxf2 {[%clk 0:01:23]}  Rxf2 {[%clk 0:00:10]} 37. Re1 {[%clk 0:01:23]}  Bc5 {[%clk 0:00:10]} 38. Rxg6+ {[%clk 0:01:13]}  Kf7 {[%clk 0:00:10]} 39. Rc6 {[%clk 0:01:14]}  Bd4 {[%clk 0:00:08]} 40. Rc2 {[%clk 0:01:15]}  Rf3 {[%clk 0:00:08]} 41. Rxc7+ {[%clk 0:01:14]}  Kf6 {[%clk 0:00:07]} 42. Rxe4 {[%clk 0:01:14]}  Rxg3 {[%clk 0:00:05]} 43. Re2 {[%clk 0:01:07]}  Kf5 {[%clk 0:00:02]} 44. Rf7+ {[%clk 0:01:04]}  Kg6 {[%clk 0:00:01]} 45. Rf1 {[%clk 0:01:03]} 1-0


[Site "https://www.chess.com"]

[Event "Titled Tuesday Blitz April 05 Late 2022"]
[White "Mickiewicz, Piotr"]
[Black "Kozak, Antoni"]
[WhiteFideId "1114891"]
[BlackFideId "21832030"]
[WhiteElo "2266"]
[BlackElo "2236"]
[Result "1-0"]
[Round "10"]
[TimeControl "180+1"]
[Date "2022.04.05"]
[WhiteClock "0:00:13"]
[BlackClock "0:00:07"]

1. Nf3 {[%clk 0:03:00]}  f5 {[%clk 0:02:57]} 2. b3 {[%clk 0:02:57]}  d6 {[%clk 0:02:50]} 3. Bb2 {[%clk 0:02:58]}  e5 {[%clk 0:02:49]} 4. d3 {[%clk 0:02:56]}  Nf6 {[%clk 0:02:47]} 5. g3 {[%clk 0:02:56]}  Be7 {[%clk 0:02:47]} 6. Bg2 {[%clk 0:02:56]}  O-O {[%clk 0:02:48]} 7. O-O {[%clk 0:02:55]}  Qe8 {[%clk 0:02:43]} 8. c4 {[%clk 0:02:49]}  Nc6 {[%clk 0:02:43]} 9. a3 {[%clk 0:02:44]}  a5 {[%clk 0:02:40]} 10. Nc3 {[%clk 0:02:38]}  Qh5 {[%clk 0:02:35]} 11. e3 {[%clk 0:02:33]}  g5 {[%clk 0:02:29]} 12. Nd5 {[%clk 0:02:25]}  Bd8 {[%clk 0:02:20]} 13. Nd2 {[%clk 0:02:23]}  Qg6 {[%clk 0:01:56]} 14. f4 {[%clk 0:02:19]}  Nxd5 {[%clk 0:01:49]} 15. cxd5 {[%clk 0:02:14]}  Ne7 {[%clk 0:01:48]} 16. fxe5 {[%clk 0:02:12]}  dxe5 {[%clk 0:01:48]} 17. Bxe5 {[%clk 0:02:11]}  c6 {[%clk 0:01:37]} 18. d6 {[%clk 0:01:57]}  Nd5 {[%clk 0:01:35]} 19. Qe2 {[%clk 0:01:27]}  Bf6 {[%clk 0:01:15]} 20. d4 {[%clk 0:01:27]}  Be6 {[%clk 0:01:11]} 21. e4 {[%clk 0:01:16]}  Nc3 {[%clk 0:00:58]} 22. Qd3 {[%clk 0:01:15]}  Nxe4 {[%clk 0:00:43]} 23. Nxe4 {[%clk 0:01:14]}  fxe4 {[%clk 0:00:39]} 24. Bxe4 {[%clk 0:01:13]}  Qh6 {[%clk 0:00:39]} 25. Bxf6 {[%clk 0:01:05]}  Rxf6 {[%clk 0:00:39]} 26. Bxh7+ {[%clk 0:01:02]}  Kg7 {[%clk 0:00:38]} 27. Rxf6 {[%clk 0:01:02]}  Qxf6 {[%clk 0:00:38]} 28. Rf1 {[%clk 0:01:01]}  Qh6 {[%clk 0:00:27]} 29. Bf5 {[%clk 0:00:50]}  Bd5 {[%clk 0:00:27]} 30. Qe3 {[%clk 0:00:44]}  Rf8 {[%clk 0:00:17]} 31. Qe5+ {[%clk 0:00:43]}  Qf6 {[%clk 0:00:13]} 32. Bc2 {[%clk 0:00:41]}  Qxe5 {[%clk 0:00:10]} 33. dxe5 {[%clk 0:00:42]}  Re8 {[%clk 0:00:10]} 34. Rf5 {[%clk 0:00:39]}  g4 {[%clk 0:00:09]} 35. Rg5+ {[%clk 0:00:31]}  Kf8 {[%clk 0:00:08]} 36. Bg6 {[%clk 0:00:28]}  Re6 {[%clk 0:00:07]} 37. Rf5+ {[%clk 0:00:15]}  Kg7 {[%clk 0:00:06]} 38. Bf7 {[%clk 0:00:14]}  Rh6 {[%clk 0:00:04]} 39. Bxd5 {[%clk 0:00:13]}  cxd5 {[%clk 0:00:05]} 40. d7 {[%clk 0:00:14]}  Rh8 {[%clk 0:00:05]} 41. e6 {[%clk 0:00:14]}  d4 {[%clk 0:00:06]} 42. e7 {[%clk 0:00:13]}  d3 {[%clk 0:00:06]} 43. e8=Q {[%clk 0:00:13]}  d2 {[%clk 0:00:07]} 44. Qf7+ {[%clk 0:00:12]}  Kh6 {[%clk 0:00:07]} 45. Rh5# {[%clk 0:00:13]} 1-0


[Site "https://www.chess.com"]

[Event "Titled Tuesday Blitz April 05 Late 2022"]
[White "Mikhailov, Viacheslav"]
[Black "Constantinou, Peter"]
[WhiteFideId "4187369"]
[BlackFideId "413038"]
[WhiteElo "2381"]
[BlackElo "2230"]
[Result "1-0"]
[Round "10"]
[TimeControl "180+1"]
[Date "2022.04.05"]
[WhiteClock "0:01:29"]
[BlackClock "0:00:08"]

1. Nf3 {[%clk 0:03:00]}  d5 {[%clk 0:02:59]} 2. g3 {[%clk 0:03:00]}  c5 {[%clk 0:02:59]} 3. Bg2 {[%clk 0:03:00]}  Nc6 {[%clk 0:02:59]} 4. d4 {[%clk 0:03:00]}  Nf6 {[%clk 0:02:58]} 5. O-O {[%clk 0:03:00]}  e6 {[%clk 0:02:58]} 6. c4 {[%clk 0:03:00]}  dxc4 {[%clk 0:02:59]} 7. dxc5 {[%clk 0:02:59]}  Qxd1 {[%clk 0:02:57]} 8. Rxd1 {[%clk 0:03:00]}  Bxc5 {[%clk 0:02:57]} 9. Nbd2 {[%clk 0:03:01]}  c3 {[%clk 0:02:54]} 10. bxc3 {[%clk 0:03:02]}  O-O {[%clk 0:02:53]} 11. Nb3 {[%clk 0:03:02]}  Be7 {[%clk 0:02:53]} 12. Rb1 {[%clk 0:03:01]}  e5 {[%clk 0:02:36]} 13. Be3 {[%clk 0:02:52]}  Bf5 {[%clk 0:02:34]} 14. Ra1 {[%clk 0:02:46]}  Rac8 {[%clk 0:02:25]} 15. Bc5 {[%clk 0:02:40]}  Bxc5 {[%clk 0:02:09]} 16. Nxc5 {[%clk 0:02:40]}  b6 {[%clk 0:02:09]} 17. Nb7 {[%clk 0:02:37]}  Rc7 {[%clk 0:01:52]} 18. Nd6 {[%clk 0:02:37]}  Bg4 {[%clk 0:01:39]} 19. Nb5 {[%clk 0:02:36]}  Rcc8 {[%clk 0:01:35]} 20. h3 {[%clk 0:02:36]}  Bxf3 {[%clk 0:01:22]} 21. Bxf3 {[%clk 0:02:37]}  e4 {[%clk 0:01:23]} 22. Bg2 {[%clk 0:02:33]}  Ne5 {[%clk 0:01:15]} 23. Nxa7 {[%clk 0:02:25]}  Rxc3 {[%clk 0:01:15]} 24. Nb5 {[%clk 0:02:25]}  Rc2 {[%clk 0:01:12]} 25. Nd4 {[%clk 0:02:25]}  Rb2 {[%clk 0:01:05]} 26. Rdb1 {[%clk 0:02:26]}  Rxb1+ {[%clk 0:01:05]} 27. Rxb1 {[%clk 0:02:26]}  Ra8 {[%clk 0:01:06]} 28. Rxb6 {[%clk 0:02:26]}  h5 {[%clk 0:01:04]} 29. Rb2 {[%clk 0:02:21]}  Ra3 {[%clk 0:01:01]} 30. Nf5 {[%clk 0:02:14]}  g6 {[%clk 0:00:53]} 31. Ne3 {[%clk 0:02:10]}  Kg7 {[%clk 0:00:49]} 32. Rc2 {[%clk 0:02:06]}  Ra4 {[%clk 0:00:43]} 33. Nf1 {[%clk 0:01:52]}  Nc4 {[%clk 0:00:40]} 34. Nd2 {[%clk 0:01:48]}  Nxd2 {[%clk 0:00:32]} 35. Rxd2 {[%clk 0:01:49]}  h4 {[%clk 0:00:16]} 36. gxh4 {[%clk 0:01:48]}  e3 {[%clk 0:00:17]} 37. fxe3 {[%clk 0:01:47]}  Rxh4 {[%clk 0:00:18]} 38. Rd4 {[%clk 0:01:47]}  Rh5 {[%clk 0:00:18]} 39. a4 {[%clk 0:01:46]}  Ra5 {[%clk 0:00:19]} 40. Bc6 {[%clk 0:01:45]}  Ng8 {[%clk 0:00:16]} 41. Bb5 {[%clk 0:01:43]}  Ne7 {[%clk 0:00:16]} 42. e4 {[%clk 0:01:43]}  Kf6 {[%clk 0:00:16]} 43. Rd7 {[%clk 0:01:41]}  Ke6 {[%clk 0:00:15]} 44. Kf2 {[%clk 0:01:39]}  Ng8 {[%clk 0:00:11]} 45. Rb7 {[%clk 0:01:38]}  Nf6 {[%clk 0:00:09]} 46. Ke3 {[%clk 0:01:38]}  Ke5 {[%clk 0:00:08]} 47. Rxf7 {[%clk 0:01:34]}  g5 {[%clk 0:00:08]} 48. Rg7 {[%clk 0:01:29]} 1-0


[Site "https://www.chess.com"]